[Event "FIDE Grand Swiss 2023"]
[Site "Villa Marina, Douglas, Isle of Man"]
[Date "2023.10.26"]
[Round "2.57"]
[White "Yakubboev, Nodirbek"]
[Black "Kolbus, Dietmar"]
[Result "1-0"]
[WhiteElo "2616"]
[BlackElo "2225"]
[EventDate "2023.10.25"]
[ECO "A36"]
[PlyCount "71"]
[BlackFideId "4610628"]
[TimeControl "40/100 + 20/50 + 15 + 30s/move"]
[WhiteFideId "14203987"]

1.c4 {[%clk 01:39:01] [%emt 00:01:58]} 1...c5 {[%clk 01:40:36] [%emt 00:00:24]} 
2.g3 {[%clk 01:36:37] [%emt 00:02:54]} 2...g6 {[%clk 01:39:31] [%emt 00:01:35]} 
3.Bg2 {[%clk 01:36:58] [%emt 00:00:10]} 3...Bg7 {[%clk 01:39:54] [%emt
00:00:06]} 4.Nc3 {[%clk 01:37:16] [%emt 00:00:13]} 4...Nc6 {[%clk 01:40:03]
[%emt 00:00:21]} 5.d3 {[%clk 01:36:02] [%emt 00:01:43]} 5...Nf6 {[%clk 01:32:43]
[%emt 00:07:50]} 6.e4 {[%clk 01:29:31] [%emt 00:07:00]} 6...d6 {[%clk 01:31:44]
[%emt 00:01:30]} 7.Nge2 {[%clk 01:29:32] [%emt 00:00:29]} 7...Nd7 {[%clk
01:18:39] [%emt 00:13:34]} 8.O-O {[%clk 01:24:47] [%emt 00:05:16]} 8...Nf8 
{[%clk 01:12:55] [%emt 00:06:15]} 9.h3 {[%clk 01:20:50] [%emt 00:04:27]} 
9...Ne6 {[%clk 01:13:10] [%emt 00:00:15]} 10.f4 {[%clk 01:21:15] [%emt
00:00:06]} 10...Ned4 {[%clk 01:13:27] [%emt 00:00:12]} 11.Nxd4 {[%clk 01:19:11]
[%emt 00:02:35]} 11...cxd4 {[%clk 01:08:17] [%emt 00:05:40]} 12.Nb1 {[%clk
01:15:36] [%emt 00:04:05]} 12...e6 {[%clk 00:50:57] [%emt 00:17:49]} 13.Nd2 
{[%clk 01:13:58] [%emt 00:02:09]} 13...O-O {[%clk 00:51:05] [%emt 00:00:21]} 
14.Nf3 {[%clk 01:09:40] [%emt 00:04:48]} 14...Ne7 {[%clk 00:46:33] [%emt
00:05:02]} 15.g4 {[%clk 01:06:16] [%emt 00:03:54]} 15...f5 {[%clk 00:45:47]
[%emt 00:01:17]} 16.Qe2 {[%clk 00:53:46] [%emt 00:13:00]} 16...fxe4 {[%clk
00:38:57] [%emt 00:07:20]} 17.Qxe4 {[%clk 00:53:03] [%emt 00:01:13]} 17...d5 
{[%clk 00:35:13] [%emt 00:04:14]} 18.cxd5 {[%clk 00:38:36] [%emt 00:14:57]} 
18...exd5 {[%clk 00:35:13] [%emt 00:00:29]} 19.Qe1 {[%clk 00:37:21] [%emt
00:01:44]} 19...Nc6 {[%clk 00:35:21] [%emt 00:00:23]} 20.Bd2 {[%clk 00:37:45]
[%emt 00:00:06]} 20...Re8 {[%clk 00:34:18] [%emt 00:01:33]} 21.Qd1 {[%clk
00:36:29] [%emt 00:01:47]} 21...Qd6 {[%clk 00:27:27] [%emt 00:07:20]} 22.Qb3 
{[%clk 00:36:00] [%emt 00:00:59]} 22...a5 {[%clk 00:22:07] [%emt 00:05:50]} 
23.Rae1 {[%clk 00:31:07] [%emt 00:05:22]} 23...Bd7 {[%clk 00:19:14] [%emt
00:03:25]} 24.Ng5 {[%clk 00:28:25] [%emt 00:03:12]} 24...Ne7 {[%clk 00:18:35]
[%emt 00:01:08]} 25.f5 {[%clk 00:19:02] [%emt 00:09:53]} 25...gxf5 {[%clk
00:18:51] [%emt 00:00:15]} 26.gxf5 {[%clk 00:17:31] [%emt 00:02:01]} 26...Bf6 
{[%clk 00:15:31] [%emt 00:03:49]} 27.Ne4 {[%clk 00:15:13] [%emt 00:02:48]} 
27...Qa6 {[%clk 00:14:07] [%emt 00:01:52]} 28.Nxf6+ {[%clk 00:15:03] [%emt
00:00:43]} 28...Qxf6 {[%clk 00:14:33] [%emt 00:00:03]} 29.Qxb7 {[%clk 00:15:25]
[%emt 00:00:07]} 29...Bc6 {[%clk 00:11:49] [%emt 00:03:13]} 30.Qc7 {[%clk
00:14:56] [%emt 00:01:00]} 30...Nxf5 {[%clk 00:10:45] [%emt 00:01:34]} 31.Rxf5 
{[%clk 00:14:22] [%emt 00:01:04]} 31...Rxe1+ {[%clk 00:10:59] [%emt 00:00:17]} 
32.Bxe1 {[%clk 00:14:48] [%emt 00:00:04]} 32...Qxf5 {[%clk 00:11:12] [%emt
00:00:17]} 33.Qxc6 {[%clk 00:15:09] [%emt 00:00:09]} 33...Rd8 {[%clk 00:09:18]
[%emt 00:02:22]} 34.Bxa5 {[%clk 00:13:40] [%emt 00:02:00]} 34...Rd7 {[%clk
00:09:43] [%emt 00:00:05]} 35.Qc8+ {[%clk 00:13:19] [%emt 00:00:51]} 35...Kf7 
{[%clk 00:09:59] [%emt 00:00:14]} 36.Bb6 {[%clk 00:12:43] [%emt 00:01:07]} 1-0

[Event "FIDE Grand Swiss 2023"]
[Site "Villa Marina, Douglas, Isle of Man"]
[Date "2023.10.27"]
[Round "3.1"]
[White "L'ami, Erwin"]
[Black "Caruana, Fabiano"]
[Result "1/2-1/2"]
[WhiteElo "2627"]
[BlackElo "2786"]
[EventDate "2023.10.25"]
[ECO "D30"]
[PlyCount "62"]
[BlackFideId "2020009"]
[TimeControl "40/100 + 20/50 + 15 + 30s/move"]
[WhiteFideId "1007998"]
[ePGN "0.1;DGT LiveChess/2.2.5"]

1.d4 {[%clk 01:40:55] [%emt 00:00:04]} 1...d5 {[%clk 01:40:35] [%emt 00:00:26]} 
2.c4 {[%clk 01:41:02] [%emt 00:00:23]} 2...e6 {[%clk 01:40:59] [%emt 00:00:05]} 
3.Nf3 {[%clk 01:39:31] [%emt 00:02:00]} 3...Nf6 {[%clk 01:41:08] [%emt
00:00:22]} 4.Nc3 {[%clk 01:39:35] [%emt 00:00:25]} 4...a6 {[%clk 01:41:32] [%emt
00:00:07]} 5.cxd5 {[%clk 01:39:27] [%emt 00:00:37]} 5...exd5 {[%clk 01:41:57]
[%emt 00:00:06]} 6.Bf4 {[%clk 01:39:51] [%emt 00:00:06]} 6...Bd6 {[%clk
01:41:56] [%emt 00:00:31]} 7.Be5 {[%clk 01:40:10] [%emt 00:00:09]} 7...Be6 
{[%clk 01:40:24] [%emt 00:02:03]} 8.e3 {[%clk 01:40:05] [%emt 00:00:34]} 
8...Nc6 {[%clk 01:39:18] [%emt 00:01:37]} 9.Be2 {[%clk 01:34:14] [%emt
00:06:21]} 9...O-O {[%clk 01:29:30] [%emt 00:10:19]} 10.O-O {[%clk 01:28:53]
[%emt 00:05:50]} 10...Ne4 {[%clk 01:16:04] [%emt 00:13:56]} 11.Nxe4 {[%clk
01:19:10] [%emt 00:10:14]} 11...dxe4 {[%clk 01:16:29] [%emt 00:00:05]} 12.Bxd6 
{[%clk 01:19:23] [%emt 00:00:16]} 12...Qxd6 {[%clk 01:16:54] [%emt 00:00:05]} 
13.Nd2 {[%clk 01:15:24] [%emt 00:04:29]} 13...f5 {[%clk 01:17:18] [%emt
00:00:07]} 14.Bc4 {[%clk 01:13:06] [%emt 00:02:47]} 14...Nb4 {[%clk 01:14:56]
[%emt 00:02:52]} 15.Bxe6+ {[%clk 01:07:57] [%emt 00:05:39]} 15...Qxe6 {[%clk
01:14:18] [%emt 00:01:09]} 16.Qb3 {[%clk 01:05:18] [%emt 00:03:08]} 16...Qxb3 
{[%clk 01:04:09] [%emt 00:10:40]} 17.Nxb3 {[%clk 01:05:05] [%emt 00:00:41]} 
17...Nd3 {[%clk 01:04:30] [%emt 00:00:10]} 18.Nc1 {[%clk 00:59:43] [%emt
00:05:52]} 18...Nb4 {[%clk 01:01:31] [%emt 00:03:30]} 19.Ne2 {[%clk 00:57:43]
[%emt 00:02:29]} 19...Nd3 {[%clk 00:57:57] [%emt 00:04:04]} 20.Nc1 {[%clk
00:57:37] [%emt 00:00:35]} 20...Nb4 {[%clk 00:54:42] [%emt 00:03:47]} 21.Ne2 
{[%clk 00:57:49] [%emt 00:00:17]} 21...Nd5 {[%clk 00:55:00] [%emt 00:00:12]} 
22.Nc3 {[%clk 00:50:29] [%emt 00:07:50]} 22...Rfd8 {[%clk 00:47:12] [%emt
00:08:18]} 23.Nxd5 {[%clk 00:42:15] [%emt 00:08:44]} 23...Rxd5 {[%clk 00:47:06]
[%emt 00:00:37]} 24.Rfc1 {[%clk 00:42:21] [%emt 00:00:23]} 24...c6 {[%clk
00:47:30] [%emt 00:00:06]} 25.g3 {[%clk 00:38:23] [%emt 00:04:28]} 25...Kf7 
{[%clk 00:47:24] [%emt 00:00:35]} 26.h4 {[%clk 00:36:14] [%emt 00:02:39]} 
26...a5 {[%clk 00:46:47] [%emt 00:01:08]} 27.b3 {[%clk 00:26:21] [%emt
00:10:22]} 27...Ke6 {[%clk 00:44:28] [%emt 00:02:49]} 28.Rc4 {[%clk 00:24:47]
[%emt 00:02:05]} 28...g6 {[%clk 00:38:39] [%emt 00:06:20]} 29.Rac1 {[%clk
00:24:11] [%emt 00:01:05]} 29...Kd6 {[%clk 00:37:09] [%emt 00:02:01]} 30.Kf1 
{[%clk 00:20:53] [%emt 00:03:47]} 30...Rb5 {[%clk 00:35:37] [%emt 00:02:02]} 
31.R1c2 {[%clk 00:15:19] [%emt 00:06:04]} 31...h5 {[%clk 00:31:00] [%emt
00:05:08]} 1/2-1/2

[Event "FIDE Grand Swiss 2023"]
[Site "Villa Marina, Douglas, Isle of Man"]
[Date "2023.10.27"]
[Round "3.2"]
[White "Erigaisi, Arjun"]
[Black "Sarana, Alexey"]
[Result "1/2-1/2"]
[WhiteElo "2712"]
[BlackElo "2682"]
[EventDate "2023.10.25"]
[ECO "C42"]
[PlyCount "122"]
[BlackFideId "24133795"]
[TimeControl "40/100 + 20/50 + 15 + 30s/move"]
[WhiteFideId "35009192"]

1.e4 {[%clk 01:40:54] [%emt 00:00:04]} 1...e5 {[%clk 01:40:49] [%emt 00:00:11]} 
2.Nf3 {[%clk 01:41:12] [%emt 00:00:13]} 2...Nf6 {[%clk 01:41:14] [%emt
00:00:05]} 3.Nxe5 {[%clk 01:39:21] [%emt 00:02:21]} 3...d6 {[%clk 01:41:39]
[%emt 00:00:05]} 4.Nf3 {[%clk 01:39:47] [%emt 00:00:04]} 4...Nxe4 {[%clk
01:42:04] [%emt 00:00:04]} 5.Nc3 {[%clk 01:40:12] [%emt 00:00:05]} 5...Nxc3 
{[%clk 01:42:15] [%emt 00:00:19]} 6.dxc3 {[%clk 01:40:37] [%emt 00:00:06]} 
6...Be7 {[%clk 01:42:38] [%emt 00:00:06]} 7.Be3 {[%clk 01:41:01] [%emt
00:00:06]} 7...Nd7 {[%clk 01:42:32] [%emt 00:00:36]} 8.Qd2 {[%clk 01:39:55]
[%emt 00:01:36]} 8...O-O {[%clk 01:42:44] [%emt 00:00:17]} 9.O-O-O {[%clk
01:40:14] [%emt 00:00:11]} 9...Nf6 {[%clk 01:43:08] [%emt 00:00:07]} 10.Bd3 
{[%clk 01:40:16] [%emt 00:00:28]} 10...d5 {[%clk 01:43:26] [%emt 00:00:11]} 
11.h3 {[%clk 01:40:30] [%emt 00:00:16]} 11...c6 {[%clk 01:34:37] [%emt
00:09:19]} 12.Rhe1 {[%clk 01:40:22] [%emt 00:00:38]} 12...Ne4 {[%clk 01:30:37]
[%emt 00:04:29]} 13.Qe2 {[%clk 01:40:37] [%emt 00:00:15]} 13...Nc5 {[%clk
01:25:16] [%emt 00:05:51]} 14.g4 {[%clk 01:40:44] [%emt 00:00:22]} 14...Bd7 
{[%clk 01:18:26] [%emt 00:07:21]} 15.Kb1 {[%clk 01:14:35] [%emt 00:26:39]} 
15...Re8 {[%clk 01:07:17] [%emt 00:11:38]} 16.Ne5 {[%clk 00:44:27] [%emt
00:30:38]} 16...Bd6 {[%clk 00:34:34] [%emt 00:33:14]} 17.Nxd7 {[%clk 00:39:54]
[%emt 00:05:03]} 17...Qxd7 {[%clk 00:34:03] [%emt 00:01:01]} 18.Bf5 {[%clk
00:36:08] [%emt 00:04:16]} 18...Qd8 {[%clk 00:33:50] [%emt 00:00:43]} 19.c4 
{[%clk 00:28:21] [%emt 00:08:17]} 19...Bf4 {[%clk 00:33:06] [%emt 00:01:13]} 
20.cxd5 {[%clk 00:24:46] [%emt 00:04:06]} 20...Bxe3 {[%clk 00:31:45] [%emt
00:01:51]} 21.fxe3 {[%clk 00:25:10] [%emt 00:00:05]} 21...cxd5 {[%clk 00:22:22]
[%emt 00:09:53]} 22.c4 {[%clk 00:25:20] [%emt 00:00:20]} 22...Re5 {[%clk
00:22:22] [%emt 00:00:29]} 23.Qg2 {[%clk 00:20:22] [%emt 00:05:29]} 23...Qe7 
{[%clk 00:18:42] [%emt 00:04:10]} 24.cxd5 {[%clk 00:19:37] [%emt 00:01:14]} 
24...Rd8 {[%clk 00:18:48] [%emt 00:00:25]} 25.Bc2 {[%clk 00:17:56] [%emt
00:02:11]} 25...Rd6 {[%clk 00:16:53] [%emt 00:02:24]} 26.Qf3 {[%clk 00:14:26]
[%emt 00:04:01]} 26...g6 {[%clk 00:16:42] [%emt 00:00:41]} 27.Qh1 {[%clk
00:09:53] [%emt 00:05:03]} 27...Rb6 {[%clk 00:11:56] [%emt 00:05:16]} 28.Qf3 
{[%clk 00:09:00] [%emt 00:01:23]} 28...Rd6 {[%clk 00:11:17] [%emt 00:01:09]} 
29.Re2 {[%clk 00:08:03] [%emt 00:01:26]} 29...Rf6 {[%clk 00:08:59] [%emt
00:02:47]} 30.Qg2 {[%clk 00:07:10] [%emt 00:01:24]} 30...Ne4 {[%clk 00:05:22]
[%emt 00:04:08]} 31.Bxe4 {[%clk 00:04:56] [%emt 00:02:43]} 31...Rxe4 {[%clk
00:05:50] [%emt 00:00:01]} 32.Qg3 {[%clk 00:05:08] [%emt 00:00:18]} 32...Rd6 
{[%clk 00:04:42] [%emt 00:01:38]} 33.Rd3 {[%clk 00:04:42] [%emt 00:00:56]} 
33...Kg7 {[%clk 00:03:52] [%emt 00:01:21]} 34.Qe1 {[%clk 00:04:13] [%emt
00:00:59]} 34...Qe5 {[%clk 00:03:34] [%emt 00:00:49]} 35.Qc3 {[%clk 00:03:30]
[%emt 00:01:13]} 35...Qxc3 {[%clk 00:01:41] [%emt 00:02:22]} 36.bxc3 {[%clk
00:03:56] [%emt 00:00:04]} 36...b5 {[%clk 00:02:10] [%emt 00:00:01]} 37.Kc2 
{[%clk 00:03:23] [%emt 00:01:03]} 37...f5 {[%clk 00:01:48] [%emt 00:00:51]} 
38.gxf5 {[%clk 00:03:42] [%emt 00:00:11]} 38...gxf5 {[%clk 00:02:16] [%emt
00:00:02]} 39.Rg2+ {[%clk 00:02:35] [%emt 00:01:36]} 39...Kf6 {[%clk 00:02:36]
[%emt 00:00:10]} 40.Rg8 {[%clk 00:02:59] [%emt 00:00:06]} 40...Re7 {[%clk
00:01:14] [%emt 00:01:53]} 41.Rf8+ {[%clk 00:01:57] [%emt 00:01:33]} 41...Ke5 
{[%clk 00:01:09] [%emt 00:00:34]} 42.Rd4 {[%clk 00:01:59] [%emt 00:00:27]} 
42...Red7 {[%clk 00:42:40] [%emt 00:08:59]} 43.Rf4 {[%clk 00:50:24] [%emt
00:02:05]} 43...Kxd5 {[%clk 00:39:13] [%emt 00:03:58]} 44.R8xf5+ {[%clk
00:29:06] [%emt 00:21:48]} 44...Kc6 {[%clk 00:39:29] [%emt 00:00:14]} 45.Rd4 
{[%clk 00:29:32] [%emt 00:00:04]} 45...Rh6 {[%clk 00:38:56] [%emt 00:01:03]} 
46.Rxd7 {[%clk 00:29:37] [%emt 00:00:25]} 46...Kxd7 {[%clk 00:39:25] [%emt
00:00:01]} 47.Rxb5 {[%clk 00:30:00] [%emt 00:00:07]} 47...Rxh3 {[%clk 00:39:13]
[%emt 00:00:41]} 48.Kd3 {[%clk 00:30:26] [%emt 00:00:04]} 48...Kc6 {[%clk
00:38:59] [%emt 00:00:45]} 49.Ra5 {[%clk 00:30:44] [%emt 00:00:12]} 49...Kb6 
{[%clk 00:39:14] [%emt 00:00:15]} 50.Rf5 {[%clk 00:30:55] [%emt 00:00:19]} 
50...h5 {[%clk 00:36:34] [%emt 00:03:10]} 51.Rf6+ {[%clk 00:27:59] [%emt
00:03:26]} 51...Kb7 {[%clk 00:36:54] [%emt 00:00:10]} 52.Kd4 {[%clk 00:17:23]
[%emt 00:11:06]} 52...Rh2 {[%clk 00:32:37] [%emt 00:04:47]} 53.Rh6 {[%clk
00:17:18] [%emt 00:00:35]} 53...Rd2+ {[%clk 00:31:57] [%emt 00:01:09]} 54.Kc4 
{[%clk 00:17:15] [%emt 00:00:33]} 54...Re2 {[%clk 00:32:23] [%emt 00:00:04]} 
55.Kd3 {[%clk 00:17:39] [%emt 00:00:06]} 55...Rxa2 {[%clk 00:32:35] [%emt
00:00:19]} 56.Rxh5 {[%clk 00:18:05] [%emt 00:00:04]} 56...a5 {[%clk 00:31:58]
[%emt 00:01:07]} 57.e4 {[%clk 00:15:42] [%emt 00:02:54]} 57...a4 {[%clk
00:29:47] [%emt 00:02:41]} 58.Ra5 {[%clk 00:15:21] [%emt 00:00:50]} 58...Kb6 
{[%clk 00:30:08] [%emt 00:00:10]} 59.Ra8 {[%clk 00:15:46] [%emt 00:00:05]} 
59...Kb7 {[%clk 00:30:28] [%emt 00:00:09]} 60.Ra5 {[%clk 00:16:12] [%emt
00:00:04]} 60...Kb6 {[%clk 00:30:52] [%emt 00:00:06]} 61.Ra8 {[%clk 00:16:38]
[%emt 00:00:04]} 61...Kb7 {[%clk 00:31:20] [%emt 00:00:02]} 1/2-1/2

[Event "FIDE Grand Swiss 2023"]
[Site "Villa Marina, Douglas, Isle of Man"]
[Date "2023.10.27"]
[Round "3.3"]
[White "Esipenko, Andrey"]
[Black "Predke, Alexandr"]
[Result "1/2-1/2"]
[WhiteElo "2683"]
[BlackElo "2656"]
[EventDate "2023.10.25"]
[ECO "B30"]
[PlyCount "49"]
[BlackFideId "24107581"]
[TimeControl "40/100 + 20/50 + 15 + 30s/move"]
[WhiteFideId "24175439"]

1.e4 {[%clk 01:40:44] [%emt 00:00:15]} 1...c5 {[%clk 01:39:41] [%emt 00:01:20]} 
2.Nf3 {[%clk 01:40:34] [%emt 00:00:39]} 2...Nc6 {[%clk 01:40:04] [%emt
00:00:08]} 3.Bb5 {[%clk 01:39:24] [%emt 00:01:39]} 3...d6 {[%clk 01:39:17] [%emt
00:01:17]} 4.O-O {[%clk 01:37:35] [%emt 00:02:19]} 4...Bd7 {[%clk 01:39:40]
[%emt 00:00:08]} 5.Re1 {[%clk 01:35:45] [%emt 00:02:19]} 5...Nf6 {[%clk
01:39:45] [%emt 00:00:26]} 6.c3 {[%clk 01:35:27] [%emt 00:00:48]} 6...a6 {[%clk
01:40:01] [%emt 00:00:15]} 7.Bf1 {[%clk 01:31:54] [%emt 00:04:02]} 7...e5 
{[%clk 01:39:51] [%emt 00:00:40]} 8.d4 {[%clk 01:21:10] [%emt 00:11:14]} 
8...cxd4 {[%clk 01:39:42] [%emt 00:00:39]} 9.cxd4 {[%clk 01:21:38] [%emt
00:00:02]} 9...Bg4 {[%clk 01:39:59] [%emt 00:00:12]} 10.d5 {[%clk 01:19:19]
[%emt 00:02:50]} 10...Nd4 {[%clk 01:40:12] [%emt 00:00:17]} 11.Be3 {[%clk
01:19:24] [%emt 00:00:25]} 11...Nxf3+ {[%clk 01:40:33] [%emt 00:00:09]} 12.gxf3 
{[%clk 01:19:49] [%emt 00:00:05]} 12...Bd7 {[%clk 01:40:58] [%emt 00:00:05]} 
13.Nd2 {[%clk 01:18:59] [%emt 00:01:20]} 13...Be7 {[%clk 01:41:13] [%emt
00:00:15]} 14.Nc4 {[%clk 01:12:00] [%emt 00:07:28]} 14...b5 {[%clk 01:41:26]
[%emt 00:00:17]} 15.Nb6 {[%clk 01:11:57] [%emt 00:00:33]} 15...Rb8 {[%clk
01:41:52] [%emt 00:00:04]} 16.Nxd7 {[%clk 01:12:19] [%emt 00:00:09]} 16...Nxd7 
{[%clk 01:42:17] [%emt 00:00:04]} 17.Qd2 {[%clk 01:01:37] [%emt 00:11:12]} 
17...O-O {[%clk 01:41:22] [%emt 00:01:26]} 18.Bh3 {[%clk 01:01:46] [%emt
00:00:21]} 18...b4 {[%clk 01:41:33] [%emt 00:00:20]} 19.Rac1 {[%clk 00:56:23]
[%emt 00:05:52]} 19...Nc5 {[%clk 01:41:47] [%emt 00:00:15]} 20.Kh1 {[%clk
00:56:16] [%emt 00:00:37]} 20...Re8 {[%clk 01:41:59] [%emt 00:00:19]} 21.b3 
{[%clk 00:49:42] [%emt 00:07:04]} 21...Bf8 {[%clk 01:38:07] [%emt 00:04:22]} 
22.Bg5 {[%clk 00:47:44] [%emt 00:02:28]} 22...Be7 {[%clk 01:38:13] [%emt
00:00:24]} 23.Be3 {[%clk 00:47:59] [%emt 00:00:15]} 23...Bf8 {[%clk 01:38:38]
[%emt 00:00:05]} 24.Bg5 {[%clk 00:46:51] [%emt 00:01:37]} 24...Be7 {[%clk
01:39:04] [%emt 00:00:05]} 25.Be3 {[%clk 00:46:42] [%emt 00:00:39]} 1/2-1/2

[Event "FIDE Grand Swiss 2023"]
[Site "Villa Marina, Douglas, Isle of Man"]
[Date "2023.10.27"]
[Round "3.4"]
[White "Firouzja, Alireza"]
[Black "Zhalmakhanov, Ramazan"]
[Result "1/2-1/2"]
[WhiteElo "2777"]
[BlackElo "2447"]
[EventDate "2023.10.25"]
[ECO "E05"]
[PlyCount "83"]
[BlackFideId "13706357"]
[TimeControl "40/100 + 20/50 + 15 + 30s/move"]
[WhiteFideId "12573981"]

1.c4 {[%clk 01:40:57] [%emt 00:00:01]} 1...e6 {[%clk 01:40:27] [%emt 00:00:33]} 
2.g3 {[%clk 01:39:56] [%emt 00:01:31]} 2...d5 {[%clk 01:40:37] [%emt 00:00:20]} 
3.Bg2 {[%clk 01:40:17] [%emt 00:00:09]} 3...Nf6 {[%clk 01:39:47] [%emt
00:01:21]} 4.Nf3 {[%clk 01:40:37] [%emt 00:00:09]} 4...Be7 {[%clk 01:36:37]
[%emt 00:03:41]} 5.O-O {[%clk 01:39:44] [%emt 00:01:22]} 5...O-O {[%clk
01:36:29] [%emt 00:00:38]} 6.d4 {[%clk 01:39:28] [%emt 00:00:47]} 6...dxc4 
{[%clk 01:36:28] [%emt 00:00:31]} 7.Qc2 {[%clk 01:39:47] [%emt 00:00:10]} 
7...a6 {[%clk 01:35:51] [%emt 00:01:08]} 8.a4 {[%clk 01:38:26] [%emt 00:01:51]} 
8...Bd7 {[%clk 01:35:34] [%emt 00:00:47]} 9.Qxc4 {[%clk 01:38:03] [%emt
00:00:53]} 9...Bc6 {[%clk 01:35:45] [%emt 00:00:19]} 10.Bf4 {[%clk 01:38:04]
[%emt 00:00:29]} 10...Bd6 {[%clk 01:34:23] [%emt 00:01:52]} 11.Qc1 {[%clk
01:32:53] [%emt 00:05:41]} 11...Nbd7 {[%clk 01:33:20] [%emt 00:01:33]} 12.Nc3 
{[%clk 01:25:53] [%emt 00:07:30]} 12...Qe7 {[%clk 01:26:38] [%emt 00:07:11]} 
13.Re1 {[%clk 01:22:13] [%emt 00:04:11]} 13...Ne4 {[%clk 01:13:37] [%emt
00:13:31]} 14.Ne5 {[%clk 01:09:42] [%emt 00:13:01]} 14...Bxe5 {[%clk 01:05:08]
[%emt 00:08:59]} 15.dxe5 {[%clk 01:06:45] [%emt 00:03:26]} 15...Nxc3 {[%clk
00:57:33] [%emt 00:08:05]} 16.Qxc3 {[%clk 01:07:05] [%emt 00:00:11]} 16...Bxg2 
{[%clk 00:56:25] [%emt 00:01:38]} 17.Kxg2 {[%clk 01:07:27] [%emt 00:00:07]} 
17...Qc5 {[%clk 00:38:28] [%emt 00:18:27]} 18.Rec1 {[%clk 01:01:29] [%emt
00:06:28]} 18...Qxc3 {[%clk 00:36:28] [%emt 00:02:30]} 19.Rxc3 {[%clk 01:01:53]
[%emt 00:00:07]} 19...Rfc8 {[%clk 00:34:17] [%emt 00:02:40]} 20.Rac1 {[%clk
00:51:19] [%emt 00:11:04]} 20...c5 {[%clk 00:31:44] [%emt 00:03:03]} 21.a5 
{[%clk 00:50:00] [%emt 00:01:49]} 21...Rc7 {[%clk 00:31:14] [%emt 00:01:00]} 
22.Be3 {[%clk 00:40:49] [%emt 00:09:42]} 22...Rac8 {[%clk 00:26:30] [%emt
00:05:14]} 23.f4 {[%clk 00:38:04] [%emt 00:03:14]} 23...Kf8 {[%clk 00:18:35]
[%emt 00:08:25]} 24.b4 {[%clk 00:34:34] [%emt 00:04:00]} 24...c4 {[%clk
00:16:27] [%emt 00:02:38]} 25.Bc5+ {[%clk 00:33:31] [%emt 00:01:33]} 25...Ke8 
{[%clk 00:16:38] [%emt 00:00:20]} 26.Rxc4 {[%clk 00:26:39] [%emt 00:07:22]} 
26...b5 {[%clk 00:16:23] [%emt 00:00:44]} 27.axb6 {[%clk 00:25:56] [%emt
00:01:14]} 27...Nxb6 {[%clk 00:16:46] [%emt 00:00:06]} 28.Rd4 {[%clk 00:25:53]
[%emt 00:00:33]} 28...Nd7 {[%clk 00:16:29] [%emt 00:00:47]} 29.Ra1 {[%clk
00:26:15] [%emt 00:00:08]} 29...Nxc5 {[%clk 00:16:22] [%emt 00:00:37]} 30.bxc5 
{[%clk 00:26:41] [%emt 00:00:05]} 30...Rxc5 {[%clk 00:15:55] [%emt 00:00:57]} 
31.Rxa6 {[%clk 00:27:04] [%emt 00:00:07]} 31...R5c6 {[%clk 00:14:48] [%emt
00:01:36]} 32.Raa4 {[%clk 00:26:24] [%emt 00:01:11]} 32...h5 {[%clk 00:14:17]
[%emt 00:01:00]} 33.Kh3 {[%clk 00:24:45] [%emt 00:02:08]} 33...g6 {[%clk
00:13:45] [%emt 00:01:03]} 34.Kh4 {[%clk 00:22:34] [%emt 00:02:41]} 34...Kf8 
{[%clk 00:13:43] [%emt 00:00:32]} 35.Kg5 {[%clk 00:19:59] [%emt 00:03:04]} 
35...Kg7 {[%clk 00:13:45] [%emt 00:00:29]} 36.e4 {[%clk 00:16:03] [%emt
00:04:27]} 36...Rc2 {[%clk 00:08:27] [%emt 00:05:46]} 37.Rd7 {[%clk 00:12:43]
[%emt 00:03:50]} 37...Rxh2 {[%clk 00:06:09] [%emt 00:02:49]} 38.Raa7 {[%clk
00:09:31] [%emt 00:03:43]} 38...Rf8 {[%clk 00:06:14] [%emt 00:00:24]} 39.f5 
{[%clk 00:09:39] [%emt 00:00:22]} 39...gxf5 {[%clk 00:05:20] [%emt 00:01:24]} 
40.exf5 {[%clk 00:07:26] [%emt 00:02:44]} 40...Re2 {[%clk 00:04:48] [%emt
00:01:00]} 41.Re7 {[%clk 00:04:25] [%emt 00:03:32]} 41...Kg8 {[%clk 00:46:15]
[%emt 00:09:02]} 42.fxe6 {[%clk 00:47:35] [%emt 00:07:21]} 1/2-1/2